fUST/lending_fUST_20251028
["ID","MTS","AMOUNT","RATE_DAILY","PERIOD"]
[392509950,1761591050562,-500.0,0.00021917,2]
[392509951,1761591050571,-1947.25,0.00021917,2]
[392509952,1761591050580,-1091.21,0.00021917,2]
[392509953,1761591050590,-500.0,0.00021917,2]
[392509954,1761591050600,-1141.57,0.00021917,2]
[392509955,1761591050611,-500.0,0.00021917,2]
[392509956,1761591050621,-500.0,0.00021917,2]
[392509957,1761591050630,-500.0,0.00021917,2]
[392509958,1761591050639,-809.13,0.00021917,2]
[392509959,1761591050648,-665.87,0.00021917,2]
[392509960,1761591050657,-500.0,0.00021917,2]
[392509961,1761591050667,-4458.42,0.00021917,2]
[392509962,1761591050676,-500.0,0.00021917,2]
[392509963,1761591050686,-500.0,0.00021917,2]
[392509964,1761591050696,-2334.49,0.00021917,2]
[392509965,1761591050706,-500.0,0.00021917,2]
[392509966,1761591050715,-500.0,0.00021917,2]
[392509967,1761591050725,-500.0,0.00021917,2]
[392509968,1761591050735,-1885.98,0.00021917,2]
[392509969,1761591050744,-500.0,0.00021917,2]
[392509970,1761591050753,-847.47,0.00021917,2]
[392509971,1761591050763,-500.0,0.00021917,2]
[392509972,1761591050772,-500.0,0.00021917,2]
[392509973,1761591050781,-1210.23,0.00021917,2]
[392509974,1761591050790,-500.0,0.00021917,2]
[392509975,1761591050800,-500.0,0.00021917,2]
[392509976,1761591050810,-1144.81,0.00021917,2]
[392509977,1761591050819,-500.0,0.00021917,2]
[392509978,1761591050828,-500.0,0.00021917,2]
[392509979,1761591050838,-500.0,0.00021917,2]
[392509980,1761591050847,-500.0,0.00021917,2]
[392509981,1761591050856,-500.0,0.00021917,2]
[392509982,1761591050865,-614.87,0.00021917,2]
[392509983,1761591050875,-551.89,0.00021917,2]
[392509984,1761591050884,-500.0,0.00021917,2]
[392509985,1761591050894,-537.31,0.00021917,2]
[392509986,1761591050904,-500.0,0.00021917,2]
[392509987,1761591050918,-500.0,0.00021917,2]
[392509988,1761591050927,-2610.26,0.00021917,2]
[392509989,1761591050937,-3288.86,0.00021917,2]
[392509990,1761591050948,-500.0,0.00021917,2]
[392509991,1761591050958,-500.0,0.00021917,2]
[392509992,1761591050969,-500.0,0.00021917,2]
[392509993,1761591050979,-986.65,0.00021917,2]
[392509994,1761591050989,-2565.42,0.00021917,2]
[392509995,1761591051000,-500.0,0.00021917,2]
[392509996,1761591051010,-1364.96,0.00021917,2]
[392509997,1761591051021,-500.0,0.00021917,2]
[392509998,1761591051031,-752.4,0.00021917,2]
[392509999,1761591051040,-1021.59,0.00021917,2]
[392510000,1761591051051,-500.0,0.00021917,2]
[392510001,1761591051062,-5764.05,0.00021917,2]
[392510002,1761591051072,-500.0,0.00021917,2]
[392510003,1761591051081,-500.0,0.00021917,2]
[392510004,1761591051091,-500.0,0.00021917,2]
[392510005,1761591051101,-766.86,0.00021917,2]
[392510006,1761591051111,-500.0,0.00021917,2]
[392510007,1761591051120,-2896.61,0.00021917,2]
[392510008,1761591051130,-821.29,0.00021917,2]
[392510009,1761591051139,-2265.47,0.00021917,2]
[392510010,1761591051148,-992.62,0.00021917,2]
[392510011,1761591051159,-900.46,0.00021917,2]
[392510012,1761591051169,-500.0,0.00021917,2]
[392510013,1761591051179,-415.48875766,0.00021917,2]
[392510014,1761591051191,-500.0,0.00021917,2]
[392510015,1761591051200,-500.0,0.00021917,2]
[392510016,1761591051211,-1236.03,0.00021917,2]
[392510017,1761591051222,-500.0,0.00021917,2]
[392510018,1761591051233,-2013.6,0.00021917,2]
[392510019,1761591051243,-500.0,0.00021917,2]
[392510020,1761591051252,-500.0,0.00021917,2]
[392510021,1761591051262,-681.06,0.00021917,2]
[392510022,1761591051271,-239.40688426,0.00021917,2]
[392510023,1761591051281,-501.31567886,0.00021917,2]
[392510024,1761591051291,-1878.86,0.00021917,2]
[392510025,1761591051301,-500.0,0.00021917,2]
[392510026,1761591051311,-500.0,0.00021917,2]
[392510027,1761591051321,-500.0,0.00021917,2]
[392510028,1761591051331,-805.3,0.00021917,2]
[392510029,1761591051342,-500.0,0.00021917,2]
[392510030,1761591051352,-500.0,0.00021917,2]
[392510031,1761591051362,-930.95,0.00021917,2]
[392510032,1761591051372,-980.79,0.00021917,2]
[392510033,1761591051383,-500.0,0.00021917,2]
[392510034,1761591051394,-500.0,0.00021917,2]
[392510035,1761591051404,-3419.54,0.00021917,2]
[392510036,1761591051414,-500.0,0.00021917,2]
[392510037,1761591051427,-500.0,0.00021917,2]
[392510038,1761591051437,-500.0,0.00021917,2]
[392510039,1761591051447,-500.0,0.00021917,2]
[392510040,1761591051457,-1139.03,0.00021917,2]
[392510041,1761591051467,-500.0,0.00021917,2]
[392510042,1761591051477,-267.61664768,0.00021917,2]
[392510043,1761591051486,-2326.57,0.00021917,2]
[392510044,1761591051497,-500.0,0.00021917,2]
[392510045,1761591051506,-500.0,0.00021917,2]
[392510046,1761591051517,-500.0,0.00021917,2]
[392510047,1761591051526,-3017.61,0.00021917,2]
[392510048,1761591051536,-500.0,0.00021917,2]
[392510049,1761591051546,-500.0,0.00021917,2]
[392510050,1761591051557,-500.0,0.00021917,2]
[392510051,1761591051567,-1154.2,0.00021917,2]
[392510052,1761591051576,-530.14609239,0.00021917,2]
[392510053,1761591051586,-500.0,0.00021917,2]
[392510054,1761591051596,-598.56720124,0.00021917,2]
[392510055,1761591051606,-500.0,0.00021917,2]
[392510056,1761591051616,-500.0,0.00021917,2]
[392510057,1761591051625,-500.0,0.00021917,2]
[392510058,1761591051635,-500.0,0.00021917,2]
[392510059,1761591051644,-500.0,0.00021917,2]
[392510060,1761591051654,-500.0,0.00021917,2]
[392510061,1761591051663,-2080.59,0.00021917,2]
[392510062,1761591051672,-500.0,0.00021917,2]
[392510063,1761591051681,-500.0,0.00021917,2]
[392510064,1761591051690,-837.2,0.00021917,2]
[392510065,1761591051700,-500.0,0.00021917,2]
[392510066,1761591051709,-819.52,0.00021917,2]
[392510067,1761591051719,-500.0,0.00021917,2]
[392510068,1761591051728,-500.0,0.00021917,2]
[392510069,1761591051737,-795.88,0.00021917,2]
[392510070,1761591051746,-501.68703418,0.00021917,2]
[392510071,1761591051755,-500.0,0.00021917,2]
[392510072,1761591051765,-500.0,0.00021917,2]
[392510073,1761591051774,-500.0,0.00021917,2]
[392510074,1761591051783,-500.0,0.00021917,2]
[392510075,1761591051793,-792.01,0.00021917,2]
[392510076,1761591051803,-2433.35,0.00021917,2]
[392510077,1761591051812,-735.47,0.00021917,2]
[392510078,1761591051821,-12618.73,0.00021917,2]
[392510079,1761591051831,-500.0,0.00021917,2]
[392510080,1761591051840,-1266.21,0.00021917,2]
[392510081,1761591051849,-500.0,0.00021917,2]
[392510082,1761591051859,-1408.09,0.00021917,2]
[392510083,1761591051868,-2600.98,0.00021917,2]
[392510084,1761591051878,-1543.74,0.00021917,2]
[392510085,1761591051887,-1808.98,0.00021917,2]
[392510086,1761591051897,-500.0,0.00021917,2]
[392510087,1761591051906,-500.0,0.00021917,2]
[392510088,1761591051916,-500.0,0.00021917,2]
[392510089,1761591051926,-500.0,0.00021917,2]
[392510090,1761591051935,-500.0,0.00021917,2]
[392510091,1761591051945,-2548.36,0.00021917,2]
[392510092,1761591051955,-500.0,0.00021917,2]
[392510093,1761591051965,-500.0,0.00021917,2]
[392510094,1761591051974,-240.89078891,0.00021917,2]
[392510095,1761591051983,-866.68,0.00021917,2]
[392510096,1761591051992,-500.0,0.00021917,2]
[392510097,1761591052002,-500.0,0.00021917,2]
[392510098,1761591052011,-875.01,0.00021917,2]
[392510099,1761591052022,-500.0,0.00021917,2]
[392510100,1761591052031,-2028.92,0.00021917,2]
[392510101,1761591052040,-500.0,0.00021917,2]
[392510102,1761591052050,-1062.0,0.00021917,2]
[392510103,1761591052060,-2313.72,0.00021917,2]
[392510104,1761591052069,-785.19,0.00021917,2]
[392510105,1761591052078,-500.0,0.00021917,2]
[392510106,1761591052088,-500.0,0.00021917,2]
[392510107,1761591052098,-500.0,0.00021917,2]
[392510108,1761591052107,-2328.65,0.00021917,2]
[392510109,1761591052116,-6303.13,0.00021917,2]
[392510110,1761591052125,-500.0,0.00021917,2]
[392510111,1761591052134,-500.0,0.00021917,2]
[392510112,1761591052144,-702.65,0.00021917,2]
[392510113,1761591052153,-500.0,0.00021917,2]
[392510114,1761591052163,-500.0,0.00021917,2]
[392510115,1761591052173,-500.0,0.00021917,2]
[392510116,1761591052182,-1644.12,0.00021917,2]
[392510117,1761591052191,-500.0,0.00021917,2]
[392510118,1761591052201,-1037.28,0.00021917,2]
[392510119,1761591052211,-1760.53,0.00021917,2]
[392510120,1761591052220,-1000.0,0.00021917,2]
[392510121,1761591052230,-500.0,0.00021917,2]
[392510122,1761591052239,-769.91,0.00021917,2]
[392510123,1761591052248,-500.0,0.00021917,2]
[392510124,1761591052258,-970.39,0.00021917,2]
[392510125,1761591052267,-500.0,0.00021917,2]
[392510126,1761591052277,-1090.19,0.00021917,2]
[392510127,1761591052286,-500.0,0.00021917,2]
[392510128,1761591052295,-500.0,0.00021917,2]
[392510129,1761591052304,-960.75,0.00021917,2]
[392510130,1761591052313,-500.0,0.00021917,2]
[392510131,1761591052323,-2789.77,0.00021917,2]
[392510132,1761591052332,-500.0,0.00021917,2]
[392510133,1761591052342,-3597.51,0.00021917,2]
[392510134,1761591052351,-500.0,0.00021917,2]
[392510135,1761591052360,-500.0,0.00021917,2]
[392510136,1761591052369,-500.0,0.00021917,2]
[392510137,1761591052379,-500.0,0.00021917,2]
[392510138,1761591052390,-469.30661346,0.00021917,2]
[392510139,1761591052399,-500.0,0.00021917,2]
[392510140,1761591052409,-1107.58,0.00021917,2]
[392510141,1761591052418,-2841.41,0.00021917,2]
[392510142,1761591052427,-500.0,0.00021917,2]
[392510143,1761591052438,-598.3,0.00021917,2]
[392510144,1761591052447,-2935.48,0.00021917,2]
[392510145,1761591052459,-500.0,0.00021917,2]
[392510146,1761591052469,-500.0,0.00021917,2]
[392510147,1761591052478,-500.0,0.00021917,2]
[392510148,1761591052487,-500.0,0.00021917,2]
[392510149,1761591052496,-500.0,0.00021917,2]
[392510150,1761591052506,-499.67024743,0.00021917,2]
[392510151,1761591052516,-600.89,0.00021917,2]
[392510152,1761591052525,-500.0,0.00021917,2]
[392510153,1761591052535,-500.0,0.00021917,2]
[392510154,1761591052544,-500.0,0.00021917,2]
[392510155,1761591052553,-500.0,0.00021917,2]
[392510156,1761591052563,-500.0,0.00021917,2]
[392510157,1761591052571,-500.0,0.00021917,2]
[392510158,1761591052580,-500.0,0.00021917,2]
[392510159,1761591052589,-500.0,0.00021917,2]
[392510160,1761591052598,-756.58,0.00021917,2]
[392510161,1761591052607,-3816.8,0.00021917,2]
[392510162,1761591052616,-500.0,0.00021917,2]
[392510163,1761591052625,-354.9737512,0.00021917,2]
[392510164,1761591052634,-500.0,0.00021917,2]
[392510165,1761591052644,-1503.26,0.00021917,2]
[392510166,1761591052653,-500.0,0.00021917,2]
[392510167,1761591052662,-500.0,0.00021917,2]
[392510168,1761591052671,-500.0,0.00021917,2]
[392510169,1761591052680,-500.0,0.00021917,2]
[392510170,1761591052689,-500.0,0.00021917,2]
[392510171,1761591052698,-500.0,0.00021917,2]
[392510172,1761591052707,-501.75832183,0.00021917,2]
[392510173,1761591052716,-500.0,0.00021917,2]
[392510174,1761591052726,-500.0,0.00021917,2]
[392510175,1761591052735,-500.0,0.00021917,2]
[392510176,1761591052744,-500.0,0.00021917,2]
[392510177,1761591052754,-500.0,0.00021917,2]
[392510178,1761591052764,-500.0,0.00021917,2]
[392510179,1761591052773,-5845.53,0.00021917,2]
[392510180,1761591052782,-500.0,0.00021917,2]
[392510181,1761591052791,-605.58,0.00021917,2]
[392510182,1761591052800,-846.06,0.00021917,2]
[392510183,1761591052809,-500.0,0.00021917,2]
[392510184,1761591052819,-500.0,0.00021917,2]
[392510185,1761591052827,-500.0,0.00021917,2]
[392510186,1761591052836,-500.0,0.00021917,2]
[392510187,1761591052845,-532.56893818,0.00021917,2]
[392510188,1761591052855,-500.0,0.00021917,2]
[392510189,1761591052864,-660.26,0.00021917,2]
[392510190,1761591052873,-500.0,0.00021917,2]
[392510191,1761591053011,-2812.55,0.00021917,2]
[392510192,1761591053022,-704.43,0.00021917,2]
[392510193,1761591053031,-500.0,0.00021917,2]
[392510194,1761591053040,-1103.63,0.00021917,2]
[392510195,1761591053050,-500.0,0.00021917,2]
[392510196,1761591053059,-708.15,0.00021917,2]
[392510197,1761591053068,-500.0,0.00021917,2]
[392510198,1761591053078,-500.0,0.00021917,2]
[392510199,1761591053087,-500.0,0.00021917,2]
[392510200,1761591053096,-500.0,0.00021917,2]
[392510201,1761591053105,-500.0,0.00021917,2]
[392510202,1761591053114,-501.66278151,0.00021917,2]
[392510203,1761591053123,-500.0,0.00021917,2]
[392510204,1761591053133,-501.13379154,0.00021917,2]
[392510205,1761591053142,-500.0,0.00021917,2]
[392510206,1761591053152,-980.61,0.00021917,2]
[392510207,1761591053161,-500.0,0.00021917,2]
[392510208,1761591053170,-500.0,0.00021917,2]
[392510209,1761591053180,-500.0,0.00021917,2]
[392510210,1761591053190,-3443.72,0.00021917,2]
[392510211,1761591053199,-1348.27,0.00021917,2]
[392510212,1761591053209,-500.0,0.00021917,2]
[392510213,1761591053218,-2089.88,0.00021917,2]
[392510214,1761591053228,-3255.93,0.00021917,2]
[392510215,1761591053238,-707.92,0.00021917,2]
[392510216,1761591053247,-500.0,0.00021917,2]
[392510217,1761591053256,-500.0,0.00021917,2]
[392510218,1761591053266,-1108.14,0.00021917,2]
[392510219,1761591053275,-520.66,0.00021917,2]
[392510220,1761591053284,-500.0,0.00021917,2]
[392510221,1761591053294,-500.0,0.00021917,2]
[392510222,1761591053304,-1556.18,0.00021917,2]
[392510223,1761591053314,-500.0,0.00021917,2]
[392510224,1761591053324,-862.91,0.00021917,2]
[392510225,1761591053333,-500.0,0.00021917,2]
[392510226,1761591053343,-500.0,0.00021917,2]
[392510227,1761591053353,-1959.3,0.00021917,2]
[392510228,1761591053362,-3234.5,0.00021917,2]
[392510229,1761591053371,-500.0,0.00021917,2]
[392510230,1761591053381,-500.0,0.00021917,2]
[392510231,1761591053395,-4394.44,0.00021917,2]
[392510232,1761591053405,-500.0,0.00021917,2]
[392510233,1761591053416,-500.0,0.00021917,2]
[392510234,1761591053427,-500.0,0.00021917,2]
[392510235,1761591053437,-749.44,0.00021917,2]
[392510236,1761591053448,-500.0,0.00021917,2]
[392510237,1761591053459,-500.0,0.00021917,2]
[392510238,1761591053470,-500.0,0.00021917,2]
[392510239,1761591053479,-500.0,0.00021917,2]
[392510240,1761591053488,-500.0,0.00021917,2]
[392510241,1761591053498,-1934.05,0.00021917,2]
[392510242,1761591053508,-500.0,0.00021917,2]
[392510243,1761591053518,-1469.39,0.00021917,2]
[392510244,1761591053528,-500.0,0.00021917,2]
[392510245,1761591053538,-500.40778694,0.00021917,2]
[392510246,1761591053548,-1257.9,0.00021917,2]
[392510247,1761591053558,-1261.87,0.00021917,2]
[392510248,1761591053567,-500.0,0.00021917,2]
[392510249,1761591053577,-404.0,0.00021917,2]
[392510250,1761591053587,-500.0,0.00021917,2]
[392510251,1761591053596,-500.0,0.00021917,2]
[392510252,1761591053606,-500.0,0.00021917,2]
[392510253,1761591053615,-500.0,0.00021917,2]
[392510254,1761591053624,-500.0,0.00021917,2]
[392510255,1761591053634,-521.95,0.00021917,2]
[392510256,1761591053644,-500.0,0.00021917,2]
[392510257,1761591053653,-500.0,0.00021917,2]
[392510258,1761591053663,-500.0,0.00021917,2]
[392510259,1761591053672,-808.99,0.00021917,2]
[392510260,1761591053681,-504.24986797,0.00021917,2]
[392510261,1761591053691,-1971.82,0.00021917,2]
[392510262,1761591053700,-982.0,0.00021917,2]
[392510263,1761591053710,-500.0,0.00021917,2]
[392510264,1761591053720,-500.0,0.00021917,2]
[392510265,1761591053729,-606.3142333,0.00021917,2]
[392510266,1761591053740,-714.53,0.00021917,2]
[392510267,1761591053749,-500.0,0.00021917,2]
[392510268,1761591053759,-500.0,0.00021917,2]
[392510269,1761591053769,-1298.86,0.00021917,2]
[392510270,1761591053780,-646.39929944,0.00021917,2]
[392510271,1761591053789,-500.0,0.00021917,2]
[392510272,1761591053799,-500.0,0.00021917,2]
[392510273,1761591053808,-456.69560098,0.00021917,2]
[392510274,1761591053818,-840.52,0.00021917,2]
[392510275,1761591053828,-500.0,0.00021917,2]
[392510276,1761591053838,-769.64,0.00021917,2]
[392510277,1761591053848,-500.0,0.00021917,2]
[392510278,1761591053858,-151.0,0.00021918,7]
[392510279,1761591053867,-151.990733,0.00021918,7]
[392510280,1761591053877,-153.0,0.00021918,2]
[392510281,1761591053888,-153.0,0.00021918,2]
[392510282,1761591053897,-153.0,0.00021918,2]
[392510283,1761591053907,-153.0,0.00021918,2]
[392510284,1761591053916,-153.0,0.00021918,2]
[392510285,1761591053925,-153.0,0.00021918,2]
[392510286,1761591053935,-153.0,0.00021918,2]
[392510287,1761591053944,-153.0,0.00021918,2]
[392510288,1761591053957,-153.0,0.00021918,2]
[392510289,1761591053967,-153.0,0.00021918,2]
[392510290,1761591053976,-153.0,0.00021918,2]
[392510291,1761591053985,-153.0,0.00021918,2]
[392510292,1761591053994,-153.0,0.00021918,2]
[392510293,1761591054003,-395.033585,0.00021918,7]
[392510294,1761591054013,-395.033585,0.00021918,7]
[392510295,1761591054022,-395.033585,0.00021918,7]
[392510296,1761591054031,-395.033585,0.00021918,7]
[392510297,1761591054041,-395.033585,0.00021918,7]
[392510298,1761591054051,-395.033585,0.00021918,7]
[392510299,1761591054060,-395.033585,0.00021918,7]
[392510300,1761591054070,-395.033585,0.00021918,7]
[392510301,1761591054079,-395.033585,0.00021918,7]
[392510302,1761591054088,-395.033585,0.00021918,7]
[392510303,1761591054098,-395.033585,0.00021918,7]
[392510304,1761591054107,-395.033585,0.00021918,7]
[392510305,1761591054117,-395.033585,0.00021918,7]
[392510306,1761591054127,-395.033585,0.00021918,7]
[392510307,1761591054136,-395.033585,0.00021918,7]
[392510308,1761591054145,-395.033585,0.00021918,7]
[392510309,1761591054156,-395.033585,0.00021918,7]
[392510310,1761591054165,-395.033585,0.00021918,7]
[392510311,1761591054175,-395.033585,0.00021918,7]
[392510312,1761591054185,-395.033581,0.00021918,7]
[392510313,1761591054194,-500.0,0.00021918,2]
[392510314,1761591054204,-272.60998769,0.00021918,2]
[392510315,1761591054214,-176.0,0.00021918,2]
[392510316,1761591054223,-158.65253999,0.00021918,2]
[392510317,1761591054233,-176.0,0.00021918,2]
[392510318,1761591054242,-152.0,0.00021918,2]
[392510319,1761591054252,-174.26786332,0.00021918,2]
[392510320,1761591054261,-152.0,0.00021918,2]
[392510321,1761591054271,-179.33027627,0.00021918,2]
[392510322,1761591054280,-152.0,0.00021918,2]
[392510323,1761591054288,-152.0,0.00021918,2]
[392510324,1761591054298,-152.0,0.00021918,2]
[392510325,1761591054307,-152.0,0.00021918,2]
[392510326,1761591054316,-152.0,0.00021918,2]
[392510327,1761591054326,-152.0,0.00021918,2]
[392510328,1761591054335,-152.0,0.00021918,2]
[392510329,1761591054351,-152.0,0.00021918,2]
[392510330,1761591054365,-152.0,0.00021918,2]
[392510331,1761591054379,-152.0,0.00021918,2]
[392510332,1761591054396,-500.0,0.00021918,2]
[392510333,1761591054409,-153.76601806,0.00021918,2]
[392510334,1761591054423,-152.0,0.00021918,2]
[392510335,1761591054438,-660.0,0.0002194,2]
[392510336,1761591054452,-500.48425532,0.00021973,2]
[392510337,1761591054467,-394.99100738,0.00021973,2]
[392510338,1761591054481,-500.0,0.00021973,2]
[392510339,1761591054494,-500.0,0.00021973,2]
[392510340,1761591054508,-500.0,0.00021973,2]
[392510341,1761591054522,-500.0,0.00021973,2]
[392510342,1761591054534,-500.0,0.00021973,2]
[392510343,1761591054546,-500.0,0.00021973,2]
[392510344,1761591054558,-500.0,0.00021973,2]
[392510345,1761591054571,-560.3332161,0.00021973,2]
[392510346,1761591054585,-500.0,0.00021973,2]
[392510347,1761591054600,-500.0,0.00021973,2]
[392510348,1761591054615,-500.0,0.00021973,2]
[392510349,1761591054628,-500.0,0.00021973,2]
[392510350,1761591054640,-500.0,0.00021973,2]
[392510351,1761591054653,-500.0,0.00021973,2]
[392510352,1761591054668,-158.6550556,0.00021973,2]
[392510353,1761591054681,-500.0,0.00021973,2]
[392510354,1761591054693,-256.59580769,0.00021973,2]
[392510355,1761591054707,-316.54551058,0.00021973,2]
[392510356,1761591054719,-160.38116801,0.00021973,2]
[392510357,1761591054731,-500.0,0.00021973,2]
[392510358,1761591054744,-500.0,0.00021973,2]
[392510359,1761591054756,-358.86178398,0.00021973,2]
[392510360,1761591054768,-399.7109972,0.00021973,2]
[392510361,1761591054780,-158.64815965,0.00021973,2]
[392510362,1761591054792,-161.06147081,0.00021973,2]
[392510363,1761591054805,-160.01994033,0.00021973,2]
[392510364,1761591054817,-576.33342227,0.00021973,2]
[392510365,1761591054833,-500.0,0.00021973,2]
[392510366,1761591054845,-238.14716289,0.00021973,2]
[392510367,1761591054858,-500.0,0.00021973,2]
[392510368,1761591054870,-500.0,0.00021973,2]
[392510369,1761591054882,-158.66034468,0.00021973,2]
[392510370,1761591054895,-500.0,0.00021973,2]
[392510371,1761591054908,-500.0,0.00021973,2]
[392510372,1761591054921,-500.0,0.00021973,2]
[392510373,1761591054935,-500.0,0.00021973,2]
[392510374,1761591054947,-500.0,0.00021973,2]
[392510375,1761591054960,-500.0,0.00021973,2]
[392510376,1761591054973,-500.0,0.00021973,2]
[392510377,1761591054985,-500.0,0.00021973,2]
[392510378,1761591054999,-500.0,0.00021973,2]
[392510379,1761591055012,-160.25301271,0.00021973,2]
[392510380,1761591055025,-500.0,0.00021973,2]
[392510381,1761591055038,-158.26285662,0.00021973,2]
[392510382,1761591055050,-158.71946268,0.00021973,2]
[392510383,1761591055063,-500.0,0.00021973,2]
[392510384,1761591055077,-160.2849281,0.00021973,2]
[392510385,1761591055090,-158.34034965,0.00021973,2]
[392510386,1761591055103,-500.0,0.00021973,2]
[392510387,1761591055118,-237.09765691,0.00021973,2]
[392510388,1761591055130,-500.0,0.00021973,2]
[392510389,1761591055147,-257.45114675,0.00021973,2]
[392510390,1761591055159,-500.0,0.00021973,2]
[392510391,1761591055172,-500.0,0.00021973,2]
[392510392,1761591055185,-533.09147741,0.00021973,2]
[392510393,1761591055197,-500.0,0.00021973,2]
[392510394,1761591055208,-500.0,0.00021973,2]
[392510395,1761591055219,-500.0,0.00021973,2]
[392510396,1761591055232,-500.0,0.00021973,2]
[392510397,1761591055243,-500.0,0.00021973,2]
[392510398,1761591055255,-500.0,0.00021973,2]
[392510399,1761591055265,-156.74938557,0.00021973,2]
[392510400,1761591055277,-175.97280361,0.00021973,2]
[392510401,1761591055288,-500.0,0.00021973,2]
[392510402,1761591055300,-500.0,0.00021973,2]
[392510403,1761591055311,-500.0,0.00021973,2]
[392510404,1761591055323,-500.0,0.00021973,2]
[392510405,1761591055335,-3447.84822257,0.00022,32]
[392510406,1761591055345,-69987.24,0.00022,7]
[392510407,1761591055357,-358.31514713,0.00022,2]
[392510408,1761591055369,-351.07701705,0.00022,4]
[392510409,1761591055382,-55380.77355724,0.00022,30]
[392510410,1761591055398,-403.5761775,0.00022,7]
[392510411,1761591055410,-3477.15574988,0.00022,5]
[392510412,1761591055423,-403.5761775,0.00022,30]
[392510413,1761591055435,-230.1193166,0.00022027,2]
[392510414,1761591055446,-192.07,0.00022057,2]
[392510415,1761591055458,-500.0,0.00022191,2]
[392510416,1761591055472,-959.62,0.00022191,2]
[392510417,1761591055484,-500.0,0.00022191,2]
[392510418,1761591055495,-500.0,0.00022191,2]
[392510419,1761591055506,-500.0,0.00022191,2]
[392510420,1761591055518,-184.94870068,0.00022191,2]
[392510421,1761591055529,-521.21314421,0.00022191,2]
[392510422,1761591055541,-500.0,0.00022191,2]
[392510423,1761591055554,-500.0,0.00022191,2]
[392510424,1761591055565,-500.0,0.00022191,2]
[392510425,1761591055577,-500.0,0.00022191,2]
[392510426,1761591055588,-500.0,0.00022191,2]
[392510427,1761591055601,-500.0,0.00022191,2]
[392510428,1761591055613,-500.0,0.00022191,2]
[392510429,1761591055625,-500.0,0.00022191,2]
[392510430,1761591055636,-500.0,0.00022191,2]
[392510431,1761591055648,-500.0,0.00022191,2]
[392510432,1761591055660,-500.0,0.00022191,2]
[392510433,1761591055671,-500.0,0.00022191,2]
[392510434,1761591055682,-600.61,0.00022191,2]
[392510435,1761591055694,-500.0,0.00022191,2]
[392510436,1761591055705,-1018.89,0.00022191,2]
[392510437,1761591055715,-500.0,0.00022191,2]
[392510438,1761591055727,-498.722172,0.00022191,2]
[392510439,1761591055738,-500.0,0.00022191,2]
[392510440,1761591055751,-500.0,0.00022191,2]
[392510441,1761591055762,-500.0,0.00022191,2]
[392510442,1761591055774,-1046.01,0.00022191,2]
[392510443,1761591055787,-500.0,0.00022191,2]
[392510444,1761591055799,-500.0,0.00022191,2]
[392510445,1761591055810,-500.0,0.00022191,2]
[392510446,1761591055822,-500.0,0.00022191,2]
[392510447,1761591055833,-500.0,0.00022191,2]
[392510448,1761591055844,-500.0,0.00022191,2]
[392510449,1761591055855,-500.0,0.00022191,2]